{"text_format":"1","workbook":"xlsx","n_sheets":5,"sheets":["Training","State 1","State 2","State 3","State 4"],"not_rendered":{"charts":0,"images":0,"macros":1,"external_links":0,"defined_names":15,"comments":0,"pivot_tables":4},"unopened":[],"bounds":{"document_bytes":16777216,"sheet_cells":100000,"rows_first":2000,"rows_last":500,"rows_between":2000,"halvings":0,"cell_chars":16384,"cell_head_chars":4096},"cells_cut":0,"cells_raw":0,"read":"whole","date_system":"1900"}

{"sheet":"Training","index":0,"n_rows":1055,"n_cols":10,"rows_kept":1055,"cut":false,"hidden":false,"merged":[]}
[null,"Training / Continuing Education Roster"]
["Course ID","Course Title","Sponsor","Date Passed","PDH/CEU","State 1","State 2","State 3","State 4","Notes"]
["A100","Course 1","State 1","2018-06-01",2,"Y","Y","Y","Y"]
["A200","Course 2","Webinar","2018-09-30",8,"Y"]
["B300","Course 3","DOT","2019-01-15",16,"Y","Y",null,"Y"]
[]
[]
[]
[]
[]
[]
[]
[]
[]
[]
[]
[]
[]
[]
[]
[]
[]
[]
[]
[]
[]
[]
[]
[]
[]
[]
[]
[]
[]
[]
[]
[]
[]
[]
[]
[]
[]
[]
[]
[]
[]
[]
[]
[]
[]
[]
[]
[]
[]
[]
[]
[]
[]
[]
[]
[]
[]
[]
[]
[]
[]
[]
[]
[]
[]
[]
[]
[]
[]
[]
[]
[]
[]
[]
[]
[]
[]
[]
[]
[]
[]
[]
[]
[]
[]
[]
[]
[]
[]
[]
[]
[]
[]
[]
[]
[]
[]
[]
[]
[]
[]
[]
[]
[]
[]
[]
[]
[]
[]
[]
[]
[]
[]
[]
[]
[]
[]
[]
[]
[]
[]
[]
[]
[]
[]
[]
[]
[]
[]
[]
[]
[]
[]
[]
[]
[]
[]
[]
[]
[]
[]
[]
[]
[]
[]
[]
[]
[]
[]
[]
[]
[]
[]
[]
[]
[]
[]
[]
[]
[]
[]
[]
[]
[]
[]
[]
[]
[]
[]
[]
[]
[]
[]
[]
[]
[]
[]
[]
[]
[]
[]
[]
[]
[]
[]
[]
[]
[]
[]
[]
[]
[]
[]
[]
[]
[]
[]
[]
[]
[]
[]
[]
[]
[]
[]
[]
[]
[]
[]
[]
[]
[]
[]
[]
[]
[]
[]
[]
[]
[]
[]
[]
[]
[]
[]
[]
[]
[]
[]
[]
[]
[]
[]
[]
[]
[]
[]
[]
[]
[]
[]
[]
[]
[]
[]
[]
[]
[]
[]
[]
[]
[]
[]
[]
[]
[]
[]
[]
[]
[]
[]
[]
[]
[]
[]
[]
[]
[]
[]
[]
[]
[]
[]
[]
[]
[]
[null,null,{"$f":"VLOOKUP(IF(ISERROR(VALUE(A282)),A282,VALUE(A282)),PayItems,2,FALSE)","v":{"$error":"#REF!"}}]
[null,null,{"$error":"#REF!"}]
[null,null,{"$error":"#REF!"}]
[null,null,{"$error":"#REF!"}]
[null,null,{"$error":"#REF!"}]
[null,null,{"$error":"#REF!"}]
[null,null,{"$error":"#REF!"}]
[null,null,{"$error":"#REF!"}]
[null,null,{"$error":"#REF!"}]
[null,null,{"$error":"#REF!"}]
[null,null,{"$error":"#REF!"}]
[null,null,{"$error":"#REF!"}]
[null,null,{"$error":"#REF!"}]
[null,null,{"$error":"#REF!"}]
[null,null,{"$error":"#REF!"}]
[null,null,{"$error":"#REF!"}]
[null,null,{"$error":"#REF!"}]
[null,null,{"$error":"#REF!"}]
[null,null,{"$error":"#REF!"}]
[null,null,{"$f":"VLOOKUP(IF(ISERROR(VALUE(A301)),A301,VALUE(A301)),PayItems,2,FALSE)","v":{"$error":"#REF!"}}]
[null,null,{"$error":"#REF!"}]
[null,null,{"$error":"#REF!"}]
[null,null,{"$error":"#REF!"}]
[null,null,{"$error":"#REF!"}]
[null,null,{"$error":"#REF!"}]
[null,null,{"$error":"#REF!"}]
[null,null,{"$error":"#REF!"}]
[null,null,{"$error":"#REF!"}]
[null,null,{"$error":"#REF!"}]
[null,null,{"$error":"#REF!"}]
[null,null,{"$error":"#REF!"}]
[null,null,{"$error":"#REF!"}]
[null,null,{"$error":"#REF!"}]
[null,null,{"$error":"#REF!"}]
[null,null,{"$error":"#REF!"}]
[null,null,{"$error":"#REF!"}]
[null,null,{"$error":"#REF!"}]
[null,null,{"$error":"#REF!"}]
[null,null,{"$error":"#REF!"}]
[null,null,{"$error":"#REF!"}]
[null,null,{"$error":"#REF!"}]
[null,null,{"$error":"#REF!"}]
[null,null,{"$f":"VLOOKUP(IF(ISERROR(VALUE(A324)),A324,VALUE(A324)),PayItems,2,FALSE)","v":{"$error":"#REF!"}}]
[null,null,{"$error":"#REF!"}]
[null,null,{"$error":"#REF!"}]
[null,null,{"$error":"#REF!"}]
[null,null,{"$error":"#REF!"}]
[null,null,{"$error":"#REF!"}]
[null,null,{"$error":"#REF!"}]
[null,null,{"$error":"#REF!"}]
[null,null,{"$error":"#REF!"}]
[null,null,{"$error":"#REF!"}]
[null,null,{"$error":"#REF!"}]
[null,null,{"$error":"#REF!"}]
[null,null,{"$error":"#REF!"}]
[null,null,{"$error":"#REF!"}]
[null,null,{"$error":"#REF!"}]
[null,null,{"$error":"#REF!"}]
[null,null,{"$error":"#REF!"}]
[null,null,{"$error":"#REF!"}]
[null,null,{"$error":"#REF!"}]
[null,null,{"$error":"#REF!"}]
[null,null,{"$error":"#REF!"}]
[null,null,{"$error":"#REF!"}]
[null,null,{"$error":"#REF!"}]
[null,null,{"$error":"#REF!"}]
[null,null,{"$error":"#REF!"}]
[null,null,{"$error":"#REF!"}]
[null,null,{"$error":"#REF!"}]
[null,null,{"$error":"#REF!"}]
[null,null,{"$error":"#REF!"}]
[null,null,{"$error":"#REF!"}]
[null,null,{"$error":"#REF!"}]
[null,null,{"$error":"#REF!"}]
[null,null,{"$error":"#REF!"}]
[null,null,{"$error":"#REF!"}]
[null,null,{"$error":"#REF!"}]
[null,null,{"$error":"#REF!"}]
[null,null,{"$error":"#REF!"}]
[null,null,{"$error":"#REF!"}]
[null,null,{"$error":"#REF!"}]
[null,null,{"$error":"#REF!"}]
[null,null,{"$error":"#REF!"}]
[null,null,{"$error":"#REF!"}]
[null,null,{"$error":"#REF!"}]
[null,null,{"$error":"#REF!"}]
[null,null,{"$error":"#REF!"}]
[null,null,{"$error":"#REF!"}]
[null,null,{"$error":"#REF!"}]
[null,null,{"$error":"#REF!"}]
[null,null,{"$error":"#REF!"}]
[null,null,{"$error":"#REF!"}]
[null,null,{"$error":"#REF!"}]
[null,null,{"$error":"#REF!"}]
[null,null,{"$error":"#REF!"}]
[null,null,{"$error":"#REF!"}]
[null,null,{"$error":"#REF!"}]
[null,null,{"$error":"#REF!"}]
[null,null,{"$error":"#REF!"}]
[null,null,{"$error":"#REF!"}]
[null,null,{"$error":"#REF!"}]
[null,null,{"$error":"#REF!"}]
[null,null,{"$error":"#REF!"}]
[null,null,{"$error":"#REF!"}]
[null,null,{"$error":"#REF!"}]
[null,null,{"$error":"#REF!"}]
[null,null,{"$f":"VLOOKUP(IF(ISERROR(VALUE(A388)),A388,VALUE(A388)),PayItems,2,FALSE)","v":{"$error":"#REF!"}}]
[null,null,{"$error":"#REF!"}]
[null,null,{"$error":"#REF!"}]
[null,null,{"$error":"#REF!"}]
[null,null,{"$error":"#REF!"}]
[null,null,{"$error":"#REF!"}]
[null,null,{"$error":"#REF!"}]
[null,null,{"$error":"#REF!"}]
[null,null,{"$error":"#REF!"}]
[null,null,{"$error":"#REF!"}]
[null,null,{"$error":"#REF!"}]
[null,null,{"$error":"#REF!"}]
[null,null,{"$error":"#REF!"}]
[null,null,{"$error":"#REF!"}]
[null,null,{"$error":"#REF!"}]
[null,null,{"$error":"#REF!"}]
[null,null,{"$error":"#REF!"}]
[null,null,{"$error":"#REF!"}]
[null,null,{"$error":"#REF!"}]
[null,null,{"$error":"#REF!"}]
[null,null,{"$error":"#REF!"}]
[null,null,{"$error":"#REF!"}]
[null,null,{"$error":"#REF!"}]
[null,null,{"$error":"#REF!"}]
[null,null,{"$error":"#REF!"}]
[null,null,{"$error":"#REF!"}]
[null,null,{"$error":"#REF!"}]
[null,null,{"$error":"#REF!"}]
[null,null,{"$error":"#REF!"}]
[null,null,{"$error":"#REF!"}]
[null,null,{"$error":"#REF!"}]
[null,null,{"$error":"#REF!"}]
[null,null,{"$error":"#REF!"}]
[null,null,{"$error":"#REF!"}]
[null,null,{"$error":"#REF!"}]
[null,null,{"$error":"#REF!"}]
[null,null,{"$error":"#REF!"}]
[null,null,{"$error":"#REF!"}]
[null,null,{"$error":"#REF!"}]
[null,null,{"$error":"#REF!"}]
[null,null,{"$error":"#REF!"}]
[null,null,{"$error":"#REF!"}]
[null,null,{"$error":"#REF!"}]
[null,null,{"$error":"#REF!"}]
[null,null,{"$error":"#REF!"}]
[null,null,{"$error":"#REF!"}]
[null,null,{"$error":"#REF!"}]
[null,null,{"$error":"#REF!"}]
[null,null,{"$error":"#REF!"}]
[null,null,{"$error":"#REF!"}]
[null,null,{"$error":"#REF!"}]
[null,null,{"$error":"#REF!"}]
[null,null,{"$error":"#REF!"}]
[null,null,{"$error":"#REF!"}]
[null,null,{"$error":"#REF!"}]
[null,null,{"$error":"#REF!"}]
[null,null,{"$error":"#REF!"}]
[null,null,{"$error":"#REF!"}]
[null,null,{"$error":"#REF!"}]
[null,null,{"$error":"#REF!"}]
[null,null,{"$error":"#REF!"}]
[null,null,{"$error":"#REF!"}]
[null,null,{"$error":"#REF!"}]
[null,null,{"$error":"#REF!"}]
[null,null,{"$f":"VLOOKUP(IF(ISERROR(VALUE(A452)),A452,VALUE(A452)),PayItems,2,FALSE)","v":{"$error":"#REF!"}}]
[null,null,{"$error":"#REF!"}]
[null,null,{"$error":"#REF!"}]
[null,null,{"$error":"#REF!"}]
[null,null,{"$error":"#REF!"}]
[null,null,{"$error":"#REF!"}]
[null,null,{"$error":"#REF!"}]
[null,null,{"$error":"#REF!"}]
[null,null,{"$error":"#REF!"}]
[null,null,{"$error":"#REF!"}]
[null,null,{"$error":"#REF!"}]
[null,null,{"$error":"#REF!"}]
[null,null,{"$error":"#REF!"}]
[null,null,{"$error":"#REF!"}]
[null,null,{"$error":"#REF!"}]
[null,null,{"$error":"#REF!"}]
[null,null,{"$error":"#REF!"}]
[null,null,{"$error":"#REF!"}]
[null,null,{"$error":"#REF!"}]
[null,null,{"$error":"#REF!"}]
[null,null,{"$error":"#REF!"}]
[null,null,{"$error":"#REF!"}]
[null,null,{"$error":"#REF!"}]
[null,null,{"$error":"#REF!"}]
[null,null,{"$error":"#REF!"}]
[null,null,{"$error":"#REF!"}]
[null,null,{"$error":"#REF!"}]
[null,null,{"$error":"#REF!"}]
[null,null,{"$error":"#REF!"}]
[null,null,{"$error":"#REF!"}]
[null,null,{"$error":"#REF!"}]
[null,null,{"$error":"#REF!"}]
[null,null,{"$error":"#REF!"}]
[null,null,{"$error":"#REF!"}]
[null,null,{"$error":"#REF!"}]
[null,null,{"$error":"#REF!"}]
[null,null,{"$error":"#REF!"}]
[null,null,{"$error":"#REF!"}]
[null,null,{"$error":"#REF!"}]
[null,null,{"$error":"#REF!"}]
[null,null,{"$error":"#REF!"}]
[null,null,{"$error":"#REF!"}]
[null,null,{"$error":"#REF!"}]
[null,null,{"$error":"#REF!"}]
[null,null,{"$error":"#REF!"}]
[null,null,{"$error":"#REF!"}]
[null,null,{"$error":"#REF!"}]
[null,null,{"$error":"#REF!"}]
[null,null,{"$error":"#REF!"}]
[null,null,{"$error":"#REF!"}]
[null,null,{"$error":"#REF!"}]
[null,null,{"$error":"#REF!"}]
[null,null,{"$error":"#REF!"}]
[null,null,{"$error":"#REF!"}]
[null,null,{"$error":"#REF!"}]
[null,null,{"$error":"#REF!"}]
[null,null,{"$error":"#REF!"}]
[null,null,{"$error":"#REF!"}]
[null,null,{"$error":"#REF!"}]
[null,null,{"$error":"#REF!"}]
[null,null,{"$error":"#REF!"}]
[null,null,{"$error":"#REF!"}]
[null,null,{"$error":"#REF!"}]
[null,null,{"$error":"#REF!"}]
[null,null,{"$f":"VLOOKUP(IF(ISERROR(VALUE(A516)),A516,VALUE(A516)),PayItems,2,FALSE)","v":{"$error":"#REF!"}}]
[null,null,{"$error":"#REF!"}]
[null,null,{"$error":"#REF!"}]
[null,null,{"$error":"#REF!"}]
[null,null,{"$error":"#REF!"}]
[null,null,{"$error":"#REF!"}]
[null,null,{"$error":"#REF!"}]
[null,null,{"$error":"#REF!"}]
[null,null,{"$error":"#REF!"}]
[null,null,{"$error":"#REF!"}]
[null,null,{"$error":"#REF!"}]
[null,null,{"$error":"#REF!"}]
[null,null,{"$error":"#REF!"}]
[null,null,{"$error":"#REF!"}]
[null,null,{"$error":"#REF!"}]
[null,null,{"$error":"#REF!"}]
[null,null,{"$error":"#REF!"}]
[null,null,{"$error":"#REF!"}]
[null,null,{"$error":"#REF!"}]
[null,null,{"$error":"#REF!"}]
[null,null,{"$error":"#REF!"}]
[null,null,{"$error":"#REF!"}]
[null,null,{"$error":"#REF!"}]
[null,null,{"$error":"#REF!"}]
[null,null,{"$error":"#REF!"}]
[null,null,{"$error":"#REF!"}]
[null,null,{"$error":"#REF!"}]
[null,null,{"$error":"#REF!"}]
[null,null,{"$error":"#REF!"}]
[null,null,{"$error":"#REF!"}]
[null,null,{"$error":"#REF!"}]
[null,null,{"$error":"#REF!"}]
[null,null,{"$error":"#REF!"}]
[null,null,{"$error":"#REF!"}]
[null,null,{"$error":"#REF!"}]
[null,null,{"$error":"#REF!"}]
[null,null,{"$error":"#REF!"}]
[null,null,{"$error":"#REF!"}]
[null,null,{"$error":"#REF!"}]
[null,null,{"$error":"#REF!"}]
[null,null,{"$error":"#REF!"}]
[null,null,{"$error":"#REF!"}]
[null,null,{"$error":"#REF!"}]
[null,null,{"$error":"#REF!"}]
[null,null,{"$error":"#REF!"}]
[null,null,{"$error":"#REF!"}]
[null,null,{"$error":"#REF!"}]
[null,null,{"$error":"#REF!"}]
[null,null,{"$error":"#REF!"}]
[null,null,{"$error":"#REF!"}]
[null,null,{"$error":"#REF!"}]
[null,null,{"$error":"#REF!"}]
[null,null,{"$error":"#REF!"}]
[null,null,{"$error":"#REF!"}]
[null,null,{"$error":"#REF!"}]
[null,null,{"$error":"#REF!"}]
[null,null,{"$error":"#REF!"}]
[null,null,{"$error":"#REF!"}]
[null,null,{"$error":"#REF!"}]
[null,null,{"$error":"#REF!"}]
[null,null,{"$error":"#REF!"}]
[null,null,{"$error":"#REF!"}]
[null,null,{"$error":"#REF!"}]
[null,null,{"$error":"#REF!"}]
[null,null,{"$f":"VLOOKUP(IF(ISERROR(VALUE(A580)),A580,VALUE(A580)),PayItems,2,FALSE)","v":{"$error":"#REF!"}}]
[null,null,{"$error":"#REF!"}]
[null,null,{"$error":"#REF!"}]
[null,null,{"$error":"#REF!"}]
[null,null,{"$error":"#REF!"}]
[null,null,{"$error":"#REF!"}]
[null,null,{"$error":"#REF!"}]
[null,null,{"$error":"#REF!"}]
[null,null,{"$error":"#REF!"}]
[null,null,{"$error":"#REF!"}]
[null,null,{"$error":"#REF!"}]
[null,null,{"$error":"#REF!"}]
[null,null,{"$error":"#REF!"}]
[null,null,{"$error":"#REF!"}]
[null,null,{"$error":"#REF!"}]
[null,null,{"$error":"#REF!"}]
[null,null,{"$error":"#REF!"}]
[null,null,{"$error":"#REF!"}]
[null,null,{"$error":"#REF!"}]
[null,null,{"$error":"#REF!"}]
[null,null,{"$error":"#REF!"}]
[null,null,{"$error":"#REF!"}]
[null,null,{"$error":"#REF!"}]
[null,null,{"$error":"#REF!"}]
[null,null,{"$error":"#REF!"}]
[null,null,{"$error":"#REF!"}]
[null,null,{"$error":"#REF!"}]
[null,null,{"$error":"#REF!"}]
[null,null,{"$error":"#REF!"}]
[null,null,{"$error":"#REF!"}]
[null,null,{"$error":"#REF!"}]
[null,null,{"$error":"#REF!"}]
[null,null,{"$error":"#REF!"}]
[null,null,{"$error":"#REF!"}]
[null,null,{"$error":"#REF!"}]
[null,null,{"$error":"#REF!"}]
[null,null,{"$error":"#REF!"}]
[null,null,{"$error":"#REF!"}]
[null,null,{"$error":"#REF!"}]
[null,null,{"$error":"#REF!"}]
[null,null,{"$error":"#REF!"}]
[null,null,{"$error":"#REF!"}]
[null,null,{"$error":"#REF!"}]
[null,null,{"$error":"#REF!"}]
[null,null,{"$error":"#REF!"}]
[null,null,{"$error":"#REF!"}]
[null,null,{"$error":"#REF!"}]
[null,null,{"$error":"#REF!"}]
[null,null,{"$error":"#REF!"}]
[null,null,{"$error":"#REF!"}]
[null,null,{"$error":"#REF!"}]
[null,null,{"$error":"#REF!"}]
[null,null,{"$error":"#REF!"}]
[null,null,{"$error":"#REF!"}]
[null,null,{"$error":"#REF!"}]
[null,null,{"$error":"#REF!"}]
[null,null,{"$error":"#REF!"}]
[null,null,{"$error":"#REF!"}]
[null,null,{"$error":"#REF!"}]
[null,null,{"$error":"#REF!"}]
[null,null,{"$error":"#REF!"}]
[null,null,{"$error":"#REF!"}]
[null,null,{"$error":"#REF!"}]
[null,null,{"$error":"#REF!"}]
[null,null,{"$f":"VLOOKUP(IF(ISERROR(VALUE(A644)),A644,VALUE(A644)),PayItems,2,FALSE)","v":{"$error":"#REF!"}}]
[null,null,{"$error":"#REF!"}]
[null,null,{"$error":"#REF!"}]
[null,null,{"$error":"#REF!"}]
[null,null,{"$error":"#REF!"}]
[null,null,{"$error":"#REF!"}]
[null,null,{"$error":"#REF!"}]
[null,null,{"$error":"#REF!"}]
[null,null,{"$error":"#REF!"}]
[null,null,{"$error":"#REF!"}]
[null,null,{"$error":"#REF!"}]
[null,null,{"$error":"#REF!"}]
[null,null,{"$error":"#REF!"}]
[null,null,{"$error":"#REF!"}]
[null,null,{"$error":"#REF!"}]
[null,null,{"$error":"#REF!"}]
[null,null,{"$error":"#REF!"}]
[null,null,{"$error":"#REF!"}]
[null,null,{"$error":"#REF!"}]
[null,null,{"$error":"#REF!"}]
[null,null,{"$error":"#REF!"}]
[null,null,{"$error":"#REF!"}]
[null,null,{"$error":"#REF!"}]
[null,null,{"$error":"#REF!"}]
[null,null,{"$error":"#REF!"}]
[null,null,{"$error":"#REF!"}]
[null,null,{"$error":"#REF!"}]
[null,null,{"$error":"#REF!"}]
[null,null,{"$error":"#REF!"}]
[null,null,{"$error":"#REF!"}]
[null,null,{"$error":"#REF!"}]
[null,null,{"$error":"#REF!"}]
[null,null,{"$error":"#REF!"}]
[null,null,{"$error":"#REF!"}]
[null,null,{"$error":"#REF!"}]
[null,null,{"$error":"#REF!"}]
[null,null,{"$error":"#REF!"}]
[null,null,{"$error":"#REF!"}]
[null,null,{"$error":"#REF!"}]
[null,null,{"$error":"#REF!"}]
[null,null,{"$error":"#REF!"}]
[null,null,{"$error":"#REF!"}]
[null,null,{"$error":"#REF!"}]
[null,null,{"$error":"#REF!"}]
[null,null,{"$error":"#REF!"}]
[null,null,{"$error":"#REF!"}]
[null,null,{"$error":"#REF!"}]
[null,null,{"$error":"#REF!"}]
[null,null,{"$error":"#REF!"}]
[null,null,{"$error":"#REF!"}]
[null,null,{"$error":"#REF!"}]
[null,null,{"$error":"#REF!"}]
[null,null,{"$error":"#REF!"}]
[null,null,{"$error":"#REF!"}]
[null,null,{"$error":"#REF!"}]
[null,null,{"$error":"#REF!"}]
[null,null,{"$error":"#REF!"}]
[null,null,{"$error":"#REF!"}]
[null,null,{"$error":"#REF!"}]
[null,null,{"$error":"#REF!"}]
[null,null,{"$error":"#REF!"}]
[null,null,{"$error":"#REF!"}]
[null,null,{"$error":"#REF!"}]
[null,null,{"$error":"#REF!"}]
[null,null,{"$f":"VLOOKUP(IF(ISERROR(VALUE(A708)),A708,VALUE(A708)),PayItems,2,FALSE)","v":{"$error":"#REF!"}}]
[null,null,{"$error":"#REF!"}]
[null,null,{"$error":"#REF!"}]
[null,null,{"$error":"#REF!"}]
[null,null,{"$error":"#REF!"}]
[null,null,{"$error":"#REF!"}]
[null,null,{"$error":"#REF!"}]
[null,null,{"$error":"#REF!"}]
[null,null,{"$error":"#REF!"}]
[null,null,{"$error":"#REF!"}]
[null,null,{"$error":"#REF!"}]
[null,null,{"$error":"#REF!"}]
[null,null,{"$error":"#REF!"}]
[null,null,{"$error":"#REF!"}]
[null,null,{"$error":"#REF!"}]
[null,null,{"$error":"#REF!"}]
[null,null,{"$error":"#REF!"}]
[null,null,{"$error":"#REF!"}]
[null,null,{"$error":"#REF!"}]
[null,null,{"$error":"#REF!"}]
[null,null,{"$error":"#REF!"}]
[null,null,{"$error":"#REF!"}]
[null,null,{"$error":"#REF!"}]
[null,null,{"$error":"#REF!"}]
[null,null,{"$error":"#REF!"}]
[null,null,{"$error":"#REF!"}]
[null,null,{"$error":"#REF!"}]
[null,null,{"$error":"#REF!"}]
[null,null,{"$error":"#REF!"}]
[null,null,{"$error":"#REF!"}]
[null,null,{"$error":"#REF!"}]
[null,null,{"$error":"#REF!"}]
[null,null,{"$error":"#REF!"}]
[null,null,{"$error":"#REF!"}]
[null,null,{"$error":"#REF!"}]
[null,null,{"$error":"#REF!"}]
[null,null,{"$error":"#REF!"}]
[null,null,{"$error":"#REF!"}]
[null,null,{"$error":"#REF!"}]
[null,null,{"$error":"#REF!"}]
[null,null,{"$error":"#REF!"}]
[null,null,{"$error":"#REF!"}]
[null,null,{"$error":"#REF!"}]
[null,null,{"$error":"#REF!"}]
[null,null,{"$error":"#REF!"}]
[null,null,{"$error":"#REF!"}]
[null,null,{"$error":"#REF!"}]
[null,null,{"$error":"#REF!"}]
[null,null,{"$error":"#REF!"}]
[null,null,{"$error":"#REF!"}]
[null,null,{"$error":"#REF!"}]
[null,null,{"$error":"#REF!"}]
[null,null,{"$error":"#REF!"}]
[null,null,{"$error":"#REF!"}]
[null,null,{"$error":"#REF!"}]
[null,null,{"$error":"#REF!"}]
[null,null,{"$error":"#REF!"}]
[null,null,{"$error":"#REF!"}]
[null,null,{"$error":"#REF!"}]
[null,null,{"$error":"#REF!"}]
[null,null,{"$error":"#REF!"}]
[null,null,{"$error":"#REF!"}]
[null,null,{"$error":"#REF!"}]
[null,null,{"$error":"#REF!"}]
[null,null,{"$f":"VLOOKUP(IF(ISERROR(VALUE(A772)),A772,VALUE(A772)),PayItems,2,FALSE)","v":{"$error":"#REF!"}}]
[null,null,{"$error":"#REF!"}]
[null,null,{"$error":"#REF!"}]
[null,null,{"$error":"#REF!"}]
[null,null,{"$error":"#REF!"}]
[null,null,{"$error":"#REF!"}]
[null,null,{"$error":"#REF!"}]
[null,null,{"$error":"#REF!"}]
[null,null,{"$error":"#REF!"}]
[null,null,{"$error":"#REF!"}]
[null,null,{"$error":"#REF!"}]
[null,null,{"$error":"#REF!"}]
[null,null,{"$error":"#REF!"}]
[null,null,{"$error":"#REF!"}]
[null,null,{"$error":"#REF!"}]
[null,null,{"$error":"#REF!"}]
[null,null,{"$error":"#REF!"}]
[null,null,{"$error":"#REF!"}]
[null,null,{"$error":"#REF!"}]
[null,null,{"$error":"#REF!"}]
[null,null,{"$error":"#REF!"}]
[null,null,{"$error":"#REF!"}]
[null,null,{"$error":"#REF!"}]
[null,null,{"$error":"#REF!"}]
[null,null,{"$error":"#REF!"}]
[null,null,{"$error":"#REF!"}]
[null,null,{"$error":"#REF!"}]
[null,null,{"$error":"#REF!"}]
[null,null,{"$error":"#REF!"}]
[null,null,{"$error":"#REF!"}]
[null,null,{"$error":"#REF!"}]
[null,null,{"$error":"#REF!"}]
[null,null,{"$error":"#REF!"}]
[null,null,{"$error":"#REF!"}]
[null,null,{"$error":"#REF!"}]
[null,null,{"$error":"#REF!"}]
[null,null,{"$error":"#REF!"}]
[null,null,{"$error":"#REF!"}]
[null,null,{"$error":"#REF!"}]
[null,null,{"$error":"#REF!"}]
[null,null,{"$error":"#REF!"}]
[null,null,{"$error":"#REF!"}]
[null,null,{"$error":"#REF!"}]
[null,null,{"$error":"#REF!"}]
[null,null,{"$error":"#REF!"}]
[null,null,{"$error":"#REF!"}]
[null,null,{"$error":"#REF!"}]
[null,null,{"$error":"#REF!"}]
[null,null,{"$error":"#REF!"}]
[null,null,{"$error":"#REF!"}]
[null,null,{"$error":"#REF!"}]
[null,null,{"$error":"#REF!"}]
[null,null,{"$error":"#REF!"}]
[null,null,{"$error":"#REF!"}]
[null,null,{"$error":"#REF!"}]
[null,null,{"$error":"#REF!"}]
[null,null,{"$error":"#REF!"}]
[null,null,{"$error":"#REF!"}]
[null,null,{"$error":"#REF!"}]
[null,null,{"$error":"#REF!"}]
[null,null,{"$error":"#REF!"}]
[null,null,{"$error":"#REF!"}]
[null,null,{"$error":"#REF!"}]
[null,null,{"$error":"#REF!"}]
["xx",null,{"$f":"VLOOKUP(IF(ISERROR(VALUE(A836)),A836,VALUE(A836)),PayItems,2,FALSE)","v":{"$error":"#REF!"}}]
[null,null,{"$error":"#REF!"}]
[null,null,{"$error":"#REF!"}]
[null,null,{"$error":"#REF!"}]
[null,null,{"$error":"#REF!"}]
[null,null,{"$error":"#REF!"}]
[null,null,{"$error":"#REF!"}]
[null,null,{"$error":"#REF!"}]
[null,null,{"$error":"#REF!"}]
[null,null,{"$error":"#REF!"}]
[null,null,{"$error":"#REF!"}]
[null,null,{"$error":"#REF!"}]
[null,null,{"$error":"#REF!"}]
[null,null,{"$error":"#REF!"}]
[null,null,{"$error":"#REF!"}]
[null,null,{"$error":"#REF!"}]
[null,null,{"$error":"#REF!"}]
[null,null,{"$error":"#REF!"}]
[null,null,{"$error":"#REF!"}]
[null,null,{"$error":"#REF!"}]
[null,null,{"$error":"#REF!"}]
[null,null,{"$error":"#REF!"}]
[null,null,{"$error":"#REF!"}]
[null,null,{"$error":"#REF!"}]
[null,null,{"$error":"#REF!"}]
[null,null,{"$error":"#REF!"}]
[null,null,{"$error":"#REF!"}]
[null,null,{"$error":"#REF!"}]
[null,null,{"$error":"#REF!"}]
[null,null,{"$error":"#REF!"}]
[null,null,{"$error":"#REF!"}]
[null,null,{"$error":"#REF!"}]
[null,null,{"$error":"#REF!"}]
[null,null,{"$error":"#REF!"}]
[null,null,{"$error":"#REF!"}]
[null,null,{"$error":"#REF!"}]
[null,null,{"$error":"#REF!"}]
[null,null,{"$error":"#REF!"}]
[null,null,{"$error":"#REF!"}]
[null,null,{"$error":"#REF!"}]
[null,null,{"$error":"#REF!"}]
[null,null,{"$error":"#REF!"}]
[null,null,{"$error":"#REF!"}]
[null,null,{"$error":"#REF!"}]
[null,null,{"$error":"#REF!"}]
[null,null,{"$error":"#REF!"}]
[null,null,{"$error":"#REF!"}]
[null,null,{"$error":"#REF!"}]
[null,null,{"$error":"#REF!"}]
[null,null,{"$error":"#REF!"}]
[null,null,{"$error":"#REF!"}]
[null,null,{"$error":"#REF!"}]
[null,null,{"$error":"#REF!"}]
[null,null,{"$error":"#REF!"}]
[null,null,{"$error":"#REF!"}]
[null,null,{"$error":"#REF!"}]
[null,null,{"$error":"#REF!"}]
[null,null,{"$error":"#REF!"}]
[null,null,{"$error":"#REF!"}]
[null,null,{"$error":"#REF!"}]
[null,null,{"$error":"#REF!"}]
[null,null,{"$error":"#REF!"}]
[null,null,{"$error":"#REF!"}]
[null,null,{"$error":"#REF!"}]
[null,null,{"$f":"VLOOKUP(IF(ISERROR(VALUE(A900)),A900,VALUE(A900)),PayItems,2,FALSE)","v":{"$error":"#REF!"}}]
[null,null,{"$error":"#REF!"}]
[null,null,{"$error":"#REF!"}]
[null,null,{"$error":"#REF!"}]
[null,null,{"$error":"#REF!"}]
[null,null,{"$error":"#REF!"}]
[null,null,{"$error":"#REF!"}]
[null,null,{"$error":"#REF!"}]
[null,null,{"$error":"#REF!"}]
[null,null,{"$error":"#REF!"}]
[null,null,{"$error":"#REF!"}]
[null,null,{"$error":"#REF!"}]
[null,null,{"$error":"#REF!"}]
[null,null,{"$error":"#REF!"}]
[null,null,{"$error":"#REF!"}]
[null,null,{"$error":"#REF!"}]
[null,null,{"$error":"#REF!"}]
[null,null,{"$error":"#REF!"}]
[null,null,{"$error":"#REF!"}]
[null,null,{"$error":"#REF!"}]
[null,null,{"$error":"#REF!"}]
[null,null,{"$error":"#REF!"}]
[null,null,{"$error":"#REF!"}]
[null,null,{"$error":"#REF!"}]
[null,null,{"$error":"#REF!"}]
[null,null,{"$error":"#REF!"}]
[null,null,{"$error":"#REF!"}]
[null,null,{"$error":"#REF!"}]
[null,null,{"$error":"#REF!"}]
[null,null,{"$error":"#REF!"}]
[null,null,{"$error":"#REF!"}]
[null,null,{"$error":"#REF!"}]
[null,null,{"$error":"#REF!"}]
[null,null,{"$error":"#REF!"}]
[null,null,{"$error":"#REF!"}]
[null,null,{"$error":"#REF!"}]
[null,null,{"$error":"#REF!"}]
[null,null,{"$error":"#REF!"}]
[null,null,{"$error":"#REF!"}]
[null,null,{"$error":"#REF!"}]
[null,null,{"$error":"#REF!"}]
[null,null,{"$error":"#REF!"}]
[null,null,{"$error":"#REF!"}]
[null,null,{"$error":"#REF!"}]
[null,null,{"$error":"#REF!"}]
[null,null,{"$error":"#REF!"}]
[null,null,{"$error":"#REF!"}]
[null,null,{"$error":"#REF!"}]
[null,null,{"$error":"#REF!"}]
[null,null,{"$error":"#REF!"}]
[null,null,{"$error":"#REF!"}]
[null,null,{"$error":"#REF!"}]
[null,null,{"$error":"#REF!"}]
[null,null,{"$error":"#REF!"}]
[null,null,{"$error":"#REF!"}]
[null,null,{"$error":"#REF!"}]
[null,null,{"$error":"#REF!"}]
[null,null,{"$error":"#REF!"}]
[null,null,{"$error":"#REF!"}]
[null,null,{"$error":"#REF!"}]
[null,null,{"$error":"#REF!"}]
[null,null,{"$error":"#REF!"}]
[null,null,{"$error":"#REF!"}]
[null,null,{"$error":"#REF!"}]
[null,null,{"$f":"VLOOKUP(IF(ISERROR(VALUE(A964)),A964,VALUE(A964)),PayItems,2,FALSE)","v":{"$error":"#REF!"}}]
[null,null,{"$error":"#REF!"}]
[null,null,{"$error":"#REF!"}]
[null,null,{"$error":"#REF!"}]
[null,null,{"$error":"#REF!"}]
[null,null,{"$error":"#REF!"}]
[null,null,{"$error":"#REF!"}]
[null,null,{"$error":"#REF!"}]
[null,null,{"$error":"#REF!"}]
[null,null,{"$error":"#REF!"}]
[null,null,{"$error":"#REF!"}]
[null,null,{"$error":"#REF!"}]
[null,null,{"$error":"#REF!"}]
[null,null,{"$error":"#REF!"}]
[null,null,{"$error":"#REF!"}]
[null,null,{"$error":"#REF!"}]
[null,null,{"$error":"#REF!"}]
[null,null,{"$error":"#REF!"}]
[null,null,{"$error":"#REF!"}]
[null,null,{"$error":"#REF!"}]
[null,null,{"$error":"#REF!"}]
[null,null,{"$error":"#REF!"}]
[null,null,{"$error":"#REF!"}]
[null,null,{"$error":"#REF!"}]
[null,null,{"$error":"#REF!"}]
[null,null,{"$error":"#REF!"}]
[null,null,{"$error":"#REF!"}]
[null,null,{"$error":"#REF!"}]
[null,null,{"$error":"#REF!"}]
[null,null,{"$error":"#REF!"}]
[null,null,{"$error":"#REF!"}]
[null,null,{"$error":"#REF!"}]
[null,null,{"$error":"#REF!"}]
[null,null,{"$error":"#REF!"}]
[null,null,{"$error":"#REF!"}]
[null,null,{"$error":"#REF!"}]
[null,null,{"$error":"#REF!"}]
[null,null,{"$error":"#REF!"}]
[null,null,{"$error":"#REF!"}]
[null,null,{"$error":"#REF!"}]
[null,null,{"$error":"#REF!"}]
[null,null,{"$error":"#REF!"}]
[null,null,{"$error":"#REF!"}]
[null,null,{"$error":"#REF!"}]
[null,null,{"$error":"#REF!"}]
[null,null,{"$error":"#REF!"}]
[null,null,{"$error":"#REF!"}]
[null,null,{"$error":"#REF!"}]
[null,null,{"$error":"#REF!"}]
[null,null,{"$error":"#REF!"}]
[null,null,{"$error":"#REF!"}]
[null,null,{"$error":"#REF!"}]
[null,null,{"$error":"#REF!"}]
[null,null,{"$error":"#REF!"}]
[null,null,{"$error":"#REF!"}]
[null,null,{"$error":"#REF!"}]
[null,null,{"$error":"#REF!"}]
[null,null,{"$error":"#REF!"}]
[null,null,{"$error":"#REF!"}]
[null,null,{"$error":"#REF!"}]
[null,null,{"$error":"#REF!"}]
[null,null,{"$error":"#REF!"}]
[null,null,{"$error":"#REF!"}]
[null,null,{"$error":"#REF!"}]
[null,null,{"$f":"VLOOKUP(IF(ISERROR(VALUE(A1028)),A1028,VALUE(A1028)),PayItems,2,FALSE)","v":{"$error":"#REF!"}}]
[null,null,{"$error":"#REF!"}]
[null,null,{"$error":"#REF!"}]
[null,null,{"$error":"#REF!"}]
[null,null,{"$error":"#REF!"}]
[null,null,{"$error":"#REF!"}]
[null,null,{"$error":"#REF!"}]
[null,null,{"$error":"#REF!"}]
[null,null,{"$error":"#REF!"}]
[null,null,{"$error":"#REF!"}]
[null,null,{"$error":"#REF!"}]
[null,null,{"$error":"#REF!"}]
[null,null,{"$error":"#REF!"}]
[null,null,{"$error":"#REF!"}]
[null,null,{"$error":"#REF!"}]
[null,null,{"$error":"#REF!"}]
[null,null,{"$error":"#REF!"}]
[null,null,{"$error":"#REF!"}]
[null,null,{"$error":"#REF!"}]
[null,null,{"$error":"#REF!"}]
[null,null,{"$error":"#REF!"}]
[null,null,{"$error":"#REF!"}]
[null,null,{"$error":"#REF!"}]
[null,null,{"$error":"#REF!"}]
[null,null,{"$error":"#REF!"}]
[null,null,{"$error":"#REF!"}]
[null,null,{"$error":"#REF!"}]
[null,null,{"$error":"#REF!"}]

{"sheet":"State 1","index":1,"n_rows":10,"n_cols":10,"rows_kept":10,"cut":false,"hidden":false,"merged":[]}
[null,"Training / Continuing Education - Renewal Summary - State 1",null,null,"Renewal Start Date:","2017-12-01"]
[null,null,null,null,"Renewal End Date:","2019-11-30"]
[null,"State 1","Y"]
[]
[null,"Sum of PDH/CEU",null,null,null,null,null,null,"Expires:","2019-11-30"]
[null,"Date Passed","Course ID","Course Title","Sponsor","Total"]
[null,"2018-06-01","A100","Course 1","State 1",2]
[null,"2018-09-30","A200","Course 2","Webinar",8]
[null,"2019-01-15","B300","Course 3","DOT",16]
[null,"Grand Total",null,null,null,26]

{"sheet":"State 2","index":2,"n_rows":8,"n_cols":10,"rows_kept":8,"cut":false,"hidden":false,"merged":[]}
[null,"Training / Continuing Education - Renewal Summary - State 2",null,null,"Renewal Start Date:","2018-08-01"]
[null,null,null,null,"Renewal End Date:","2020-07-31"]
[null,"State 2","Y"]
[]
[null,"Sum of PDH/CEU",null,null,null,null,null,null,"Expires:","2020-07-31"]
[null,"Date Passed","Course ID","Course Title","Sponsor","Total"]
[null,"2019-01-15","B300","Course 3","DOT",16]
[null,"Grand Total",null,null,null,16]

{"sheet":"State 3","index":3,"n_rows":8,"n_cols":10,"rows_kept":8,"cut":false,"hidden":false,"merged":[]}
[null,"Training / Continuing Education - Renewal Summary - State 3",null,null,"Renewal Start Date:","2017-01-01"]
[null,null,null,null,"Renewal End Date:","2019-12-31"]
[null,"State 3","Y"]
[]
[null,"Sum of PDH/CEU",null,null,null,null,null,null,"Expires:","2019-12-01"]
[null,"Date Passed","Course ID","Course Title","Sponsor","Total"]
[null,"2018-06-01","A100","Course 1","State 1",2]
[null,"Grand Total",null,null,null,2]

{"sheet":"State 4","index":4,"n_rows":9,"n_cols":6,"rows_kept":9,"cut":false,"hidden":false,"merged":[]}
[null,"Training / Continuing Education - Renewal Summary - State 4",null,null,"Renewal Start Date:","2017-01-01"]
[null,null,null,null,"Renewal End Date:","2019-07-01"]
[null,"State 4","Y"]
[]
[null,"Sum of PDH/CEU"]
[null,"Date Passed","Course ID","Course Title","Sponsor","Total"]
[null,"2018-06-01","A100","Course 1","State 1",2]
[null,"2019-01-15","B300","Course 3","DOT",16]
[null,"Grand Total",null,null,null,18]